Cogmind - Beta 10.2 @@@ ROGUE MODE // 2021.01.18 @ 13:30:50 Player: Demise Result: Destroyed by as-94663 with Assembled Focal Cannon Performance ------------- Evolutions (3) 1500 Regions Visited (12) 2400 Robots Destroyed (208) 1040 Value Destroyed (6569) 6569 Prototype IDs (60) 1200 Alien Tech Used (1) 200 Bonus (-2942) -2942 TOTAL SCORE: 9967 Bonus ------- Triggered High Security 500 High Alert Combat Kills 1240 Follower Combat Kills 206 Aligned with FarCom 300 Met Imprinter 300 Destroyed Z-Imprinter 1000 Exposed GOLEM Chamber 500 Friendly Fire -6988 Cogmind --------- Core Integrity 0/700 Matter 300/300 Energy 100/100 System Corruption 0% Temperature Cool (12) Movement Treading (182) Ox1 Location -7/Deep Caves Parts ------- > --- POWER (1) -------- Zionite Light DM Reactor > --- PROPULSION (2) --- Advanced Treads Spiked Medium Treads > --- UTILITY (9) ------ Experimental Heat Sink Large Storage Unit High-capacity Storage Unit Advanced Targeting Computer Advanced Armor Integrity Analyzer Zionite Weapon Casing Improved Medium Armor Plating Experimental Thermal Shield > --- WEAPON (2) ------- Zionite Laser-S Zionite Phaser-S > --- INVENTORY (18) --- Zionite Biocell (1000) Zionite Weapon Casing Zionite Light Carapace Zionite Light Carapace Zionite Light Carapace GOLEM Unit GOLEM Unit GOLEM Unit GOLEM Unit Zionite Laser-S Peak State ------------ > --- POWER ------------ Zionite Light DM Reactor > --- PROPULSION ------- Advanced Treads Spiked Medium Treads > --- UTILITY ---------- Experimental Heat Sink Large Storage Unit High-capacity Storage Unit Advanced Targeting Computer Advanced Armor Integrity Analyzer Zionite Weapon Casing Zionite Light Carapace Zionite Light Carapace Experimental Thermal Shield > --- WEAPON ----------- Zionite Laser-S Zionite Phaser-S > --- INVENTORY -------- Zionite Light DM Reactor Carbon-fiber Leg Experimental Heat Sink Experimental Heat Sink Experimental Heat Sink Zionite Biocell Zionite Biocell Zionite Weapon Casing Zionite Weapon Casing Zionite Light Carapace Zionite Light Carapace Zionite Light Carapace Zionite Light Carapace Zionite Light Carapace Improved Medium Armor Plating Zionite Laser-S Zionite Phaser-S Zionite Laser-M [Rating: 86] Favorites ----------- Power Micro Nuclear Core Engine Reinforced Ion Engine Power Core Micro Nuclear Core Reactor Zionite Light DM Reactor Propulsion Armored Treads Treads Armored Treads Hover Unit Combat Airjet Utility Large Storage Unit Device Long-range Sensor Array Storage Large Storage Unit Processor Advanced Signal Interpreter Hackware Hacking Suite Protection Improved Medium Armor Plating Weapon Flak Gun Energy Gun Zionite Laser-S Ballistic Gun Flak Gun Ballistic Cannon Advanced Assault Cannon Launcher Rocket Array Special Weapon Mining Laser Slashing Weapon Greatsword Special Melee Weapon Datajack Build | -11 -10 -10 -10 -9 -8 -7 -7 -7 -7 -7 -7 -7 ------- Run | Scr Mat Min Exi Min Mat Fac Was Fac Low Low Zio Dee Slots Evolved 6 | . . . . . 4 2 . . . . . . Power . | . . . . . . . . . . . . . Propulsion . | . . . . . . . . . . . . . Utility 6 | . . . . . 4 2 . . . . . . Weapon . | . . . . . . . . . . . . . Parts Attached 345 | 4 20 5 4 10 61 59 18 99 7 7 7 44 Power 18 | . 5 1 . 1 1 2 . 4 . . . 4 Engine 11 | . 5 1 . . 1 2 . 2 . . . . Core 3 | . . . . 1 . . . 2 . . . . Reactor 4 | . . . . . . . . . . . . 4 Propulsion 41 | 2 3 2 . . 9 4 3 10 . . 1 7 Treads 35 | 2 3 . . . 9 4 1 10 . . 1 5 Leg . | . . . . . . . . . . . . . Wheel . | . . . . . . . . . . . . . Hover 6 | . . 2 . . . . 2 . . . . 2 Flight . | . . . . . . . . . . . . . Utility 142 | . 5 . 2 . 24 18 11 44 4 6 3 25 Device 37 | . . . . . 1 8 2 17 2 1 . 6 Storage 31 | . 3 . 1 . 7 1 8 8 . . . 3 Processor 10 | . 2 . 1 . 2 1 . . 1 . . 3 Hackware 5 | . . . . . 1 1 . 3 . . . . Protection 59 | . . . . . 13 7 1 16 1 5 3 13 Artifact . | . . . . . . . . . . . . . Weapon 144 | 2 7 2 2 9 27 35 4 41 3 1 3 8 Energy Gun 8 | . . . . . . . . 3 . . . 5 Energy Cannon . | . . . . . . . . . . . . . Ballistic Gun 81 | 2 3 1 1 5 18 19 2 23 1 1 2 3 Ballistic Cannon 28 | . . . . 2 7 9 . 8 2 . . . Launcher 5 | . . . . . . 1 1 3 . . . . Special Weapon 4 | . 3 1 . . . . . . . . . . Impact Weapon . | . . . . . . . . . . . . . Slashing Weapon 2 | . . . . . . . 1 . . . 1 . Piercing Weapon . | . . . . . . . . . . . . . Special Melee Weapon 16 | . 1 . 1 2 2 6 . 4 . . . . Unidentified Prototypes 15 | . . . . . 1 1 . . . 1 . 12 Parts Lost 26 | . 1 . . . 2 . . 14 . . . 9 Power 3 | . 1 . . . . . . 2 . . . . Propulsion 2 | . . . . . . . . 2 . . . . Utility 13 | . . . . . . . . 6 . . . 7 Weapon 8 | . . . . . 2 . . 4 . . . 2 Highest Loss Streak 6 | . 1 . . . 1 . . 6 . . . 5 Average Slot Usage (%) 97 | . 89 100 100 99 99 99 87 97 100 99 99 98 Engine 4 | . 10 14 14 4 3 6 7 4 . . . . Core 3 | . . . . 9 5 . . 1 7 7 7 1 Treads 14 | . 28 19 . . 16 14 . 12 15 14 14 14 Hover 2 | . . 8 28 28 1 . 13 . . . . . Device 4 | . . . . . . 4 4 6 6 6 7 10 Storage 29 | . 16 28 27 28 23 38 30 32 38 36 35 16 Processor 4 | . 5 . . . 4 . . . 7 7 7 17 Hackware 7 | . . . . . 9 13 15 13 . . . . Protection 9 | . . . . . 16 3 2 7 7 12 13 16 Ballistic Gun 13 | . 18 27 21 23 16 13 4 12 11 9 12 4 Ballistic Cannon 1 | . . . . 3 1 . . 1 3 4 . . Naked Turns . | . . . . . . . . . . . . . Heaviest Build 192 | 3 43 43 43 48 95 137 137 186 183 192 187 187 Greatest Support 70 | 20 40 44 44 44 44 56 70 70 42 42 42 50 Greatest Overweight (x) 32 | . 2 1 . 1 2 2 3 32 4 4 4 4 Average Overweight (x) 1 | . . . . . 1 2 1 2 3 3 3 1 Largest Inventory Capacity 44 | 4 16 16 16 16 34 36 42 44 42 42 42 42 Average Capacity 30 | 4 10 16 15 16 19 35 29 36 42 42 42 21 Most Carried 42 | 4 16 16 16 16 34 36 42 42 42 42 42 42 Average Carried 29 | 2 9 15 15 15 18 35 26 34 41 41 41 19 Final Capacity 42 | 4 16 16 16 16 34 36 42 42 42 42 42 18 Final Carried 42 | 4 16 16 16 16 34 36 42 41 42 42 42 14 Class Distribution -------------------- 67% | Hauler-Mutant 16% | Mutant 13% | Scavenger-Mutant Dominant Class ---------------- Mutant | -10/Materials Mutant | -10/Mines Mutant | -10/Exiles Mutant | -9/Mines Hauler-Mutant | -8/Materials Hauler-Mutant | -7/Factory Hauler-Mutant | -7/Waste Hauler-Mutant | -7/Factory Hauler-Mutant | -7/Lower Caves Hauler-Mutant | -7/Lower Caves Hauler-Mutant | -7/Zion Scavenger-Mutant | -7/Deep Caves Resources | -11 -10 -10 -10 -9 -8 -7 -7 -7 -7 -7 -7 -7 ----------- Run | Scr Mat Min Exi Min Mat Fac Was Fac Low Low Zio Dee Matter Collected 8095 | 252 411 106 20 114 1649 1513 603 2377 165 240 80 565 Remotely . | . . . . . . . . . . . . . Salvage Created 10476 | 106 539 94 . 93 1760 1635 2034 3442 226 52 . 495 Parts 470 | 5 34 7 . . 113 90 37 151 9 6 . 18 Haulers Intercepted 16 | . 2 . . . 6 6 . 2 . . . . Recyclers Shooed 7 | 1 2 . . . . 1 . 3 . . . . Parts Field Recycled . | . . . . . . . . . . . . . Retrieved Matter . | . . . . . . . . . . . . . Parts Self-Destructed 22 | . . . . . . . . . 9 11 2 . Prevented . | . . . . . . . . . . . . . Kills | -11 -10 -10 -10 -9 -8 -7 -7 -7 -7 -7 -7 -7 ------- Run | Scr Mat Min Exi Min Mat Fac Was Fac Low Low Zio Dee Combat Hostiles Destroyed 125 | . 10 3 . 2 23 15 6 55 4 1 . 6 Guns 105 | . 10 3 . 2 23 15 . 41 4 1 . 6 AOE 20 | . . . . . . . 6 14 . . . . Classes Destroyed 21 | 2 6 2 . 1 3 1 1 2 1 . . 2 Worker 8 | . . . . . 4 2 . 2 . . . . Builder 3 | . . 1 . . 2 . . . . . . . Tunneler 1 | 1 . . . . . . . . . . . . Hauler 16 | . 2 . . . 6 6 . 2 . . . . Recycler 16 | 1 . . . . 1 6 . 8 . . . . Minesweeper 1 | . . . . . . . . . 1 . . . Mechanic 4 | . 1 . . . 1 1 . 1 . . . . Operator 1 | . 1 . . . . . . . . . . . Watcher 16 | . 3 . . . 5 5 . 3 . . . . Swarmer 14 | . 3 . . . 3 1 . 7 . . . . Grunt 47 | . 7 . . 1 9 1 . 26 3 . . . Brawler 8 | . . . . . . . . 8 . . . . Duelist 3 | . . . . 1 . . . 1 1 . . . Protector 1 | . . . . . . . . 1 . . . . Sentry 14 | . . . . . 10 1 . 3 . . . . Demolisher 2 | . . 2 . . . . . . . . . . Hunter 4 | . . . . . 1 1 . 1 . 1 . . Programmer 19 | . . . . . . 11 . 8 . . . . Compactor 6 | . . . . . . . 6 . . . . . Z-Light 3 | . . . . . . . . . . . . 3 Golem 3 | . . . . . . . . . . . . 3 Surgeon 2 | . . . . . . . 2 . . . . . Wasp 6 | . . . . . . . 6 . . . . . Thug 7 | . . . . . . . 7 . . . . . Butcher 2 | . . . . . . . 2 . . . . . Martyr 2 | . . . . . . . 2 . . . . . Best Kill Streak 10 | 2 4 2 . 2 4 4 2 10 4 1 . 2 Combat Bots Only 8 | . 3 2 . 2 3 2 2 8 4 1 . 2 Max Kills in Single Turn 4 | 1 1 1 . 1 2 2 1 4 1 1 . 1 Gunslinging 1 | . . . . . . . . 1 . . . . Exploded 4 | . . . . . . . 1 4 . . . . Melee . | . . . . . . . . . . . . . Uniques/NPCs Destroyed 2 | . . 1 . . . . . . . . . 1 YI-UF0 (-10/Mines) Z-Imprinter (-7/Deep Caves) Combat | -11 -10 -10 -10 -9 -8 -7 -7 -7 -7 -7 -7 -7 -------- Run | Scr Mat Min Exi Min Mat Fac Was Fac Low Low Zio Dee Damage Taken 9802 | . 374 135 . 125 1523 953 22 3671 255 102 . 2642 Core 1031 | . 39 14 . 29 248 39 . 305 . 10 . 347 Absorbed by Shields . | . . . . . . . . . . . . . Core Remaining (%) 73 | 100 . . . 67 54 . . . . . . . Volleys Fired 641 | 3 59 10 . 15 145 97 20 176 12 23 . 81 Largest 2 | 2 2 2 . 2 2 2 1 2 2 2 . 2 Hottest 122 | 40 100 100 . 48 73 56 45 122 56 56 . 120 Shots Fired 1093 | 6 109 17 . 24 269 172 20 299 20 24 . 133 Gun 938 | 6 100 14 . 18 247 152 . 249 16 3 . 133 Cannon 119 | . . . . 6 22 20 . 46 4 21 . . Launcher 24 | . . . . . . . 20 4 . . . . Special 12 | . 9 3 . . . . . . . . . . Kinetic 941 | 6 100 14 . 24 269 172 . 279 20 24 . 33 Thermal 73 | . 9 3 . . . . . 16 . . . 45 Explosive 24 | . . . . . . . 20 4 . . . . Electromagnetic . | . . . . . . . . . . . . . Phasic 55 | . . . . . . . . . . . . 55 Robot Hit Streak 39 | 2 11 8 . 4 17 14 17 12 6 . . 39 Robot Miss Streak 8 | 1 5 2 . 2 4 5 3 8 1 . . 3 Penetration Max . | . . . . . . . . . . . . . Secondary Targets 8 | . 1 . . 1 3 . . 3 . . . . Max Gunslinging Chain 1 | . 1 . . 1 1 . . 1 . . . . Shots Hit Robots 515 | 3 69 6 4 13 176 54 55 70 1 . . 64 Core Hits 697 | 2 30 5 . 4 77 115 39 332 29 7 . 57 Critical Hits 10 | . . . . . 4 2 3 1 . . . . Critical Kills 2 | . . . . . 1 . 1 . . . . . Critical Parts Destroyed 8 | . . . . . 3 2 2 1 . . . . Melee Attacks 50 | . . . 4 . . 1 35 5 . . 5 . Impact . | . . . . . . . . . . . . . Slashing 40 | . . . . . . . 35 . . . 5 . Piercing . | . . . . . . . . . . . . . Sneak Attacks 45 | . . . 4 . . 1 35 5 . . . . Combat Hostiles . | . . . . . . . . . . . . . Follow-up Attacks . | . . . . . . . . . . . . . Damage Inflicted 27227 | 57 873 119 . 229 2784 2735 9518 7904 481 57 . 2470 Guns 15651 | 57 849 119 . 202 2713 2705 . 5998 481 57 . 2470 Cannons 108 | . . . . 27 57 . . 24 . . . . Explosions 6169 | . . . . . . 30 4308 1831 . . . . Melee 5210 | . . . . . . . 5210 . . . . . Ramming 65 | . . . . . 14 . . 51 . . . . Kinetic 13614 | 57 849 119 . 229 2770 2705 . 5771 481 57 . 576 Thermal 1713 | . 24 . . . . . . 1049 . . . 640 Explosive 5341 | . . . . . . . 4308 1033 . . . . Electromagnetic 30 | . . . . . . 30 . . . . . . Impact . | . . . . . . . . . . . . . Slashing 5210 | . . . . . . . 5210 . . . . . Piercing . | . . . . . . . . . . . . . Phasic 1254 | . . . . . . . . . . . . 1254 Highest Corruption 7 | . . . . . . 2 . 7 . . . . Average Corruption 2 | . . . . . . 1 . 3 . . . . Corruption Purged 17 | . . . . . . 5 . 12 . . . . Effects 48 | . . . . . . 6 . 42 . . . . Message Errors 14 | . . . . . . 2 . 12 . . . . Matter Fused 5 | . . . . . . . . 5 . . . . Heat Flow Errors 7 | . . . . . . . . 7 . . . . Energy Discharges 9 | . . . . . . 4 . 5 . . . . Data Loss (minor) 3 | . . . . . . . . 3 . . . . Misfires 2 | . . . . . . . . 2 . . . . Targeting Errors 6 | . . . . . . . . 6 . . . . Weapon Failures 2 | . . . . . . . . 2 . . . . Overload Shots . | . . . . . . . . . . . . . Overflow Damage 1300 | . . . . 5 . . 1125 170 . . . . Projectiles 5 | . . . . 5 . . . . . . . . Explosions 168 | . . . . . . . . 168 . . . . Melee 1127 | . . . . . . . 1125 2 . . . . Knockbacks 1 | . . . . . . . . 1 . . . . Impact . | . . . . . . . . . . . . . Kinetic 1 | . . . . . . . . 1 . . . . Secondary . | . . . . . . . . . . . . . Self-Inflicted Damage 352 | . . . . . . . 22 330 . . . . Shots 9 | . . . . . . . 1 8 . . . . Rammed 6 | . . . . . 3 . . 3 . . . . Targets Rammed 6 | . . . . . 3 . . 3 . . . . Kicked . | . . . . . . . . . . . . . Crushed . | . . . . . . . . . . . . . Highest Temperature 294 | . 40 72 . 24 58 62 . 294 66 14 . 290 Average Temperature 62 | . 12 22 . 9 14 12 . 90 36 6 . 113 Received Heat Transfer 2685 | . 186 . . . 522 102 . 1092 126 . . 657 Effects 6 | . . . . . . . . 2 . . . 4 Energy Bleed 1 | . . . . . . . . . . . . 1 Interference 5 | . . . . . . . . 2 . . . 3 Siege Activations 1 | . . . . . . . . 1 . . . . Total Turns 1 | . . . . . . . . 1 . . . . Longest Duration 1 | . . . . . . . . 1 . . . . Robots Corrupted . | . . . . . . . . . . . . . Combat Hostiles . | . . . . . . . . . . . . . Parts Fried 1 | . . . . . . . . . . . . 1 Impact Corruptions 1 | . . . . . . . . 1 . . . . Robots Melted . | . . . . . . . . . . . . . Combat Hostiles . | . . . . . . . . . . . . . Parts Melted 2 | . . . . . . . . 1 . . . 1 Heat Transferred 1971 | . 50 . . . . . . 922 . . . 999 Parts Sabotaged . | . . . . . . . . . . . . . Parts Stolen . | . . . . . . . . . . . . . Parts Stripped . | . . . . . . . . . . . . . Power Chain Reactions . | . . . . . . . . . . . . . Missiles Intercepted . | . . . . . . . . . . . . . Alert | -11 -10 -10 -10 -9 -8 -7 -7 -7 -7 -7 -7 -7 ------- Run | Scr Mat Min Exi Min Mat Fac Was Fac Low Low Zio Dee Peak Influence 1752 | 10 261 79 . 40 393 539 220 1752 . . . . Initial 112 | . 6 22 . . . 112 102 . . . . . Average 332 | 2 64 39 . 20 161 210 49 838 . . . . Maximum Alert Level 5 | . 1 . . . 1 2 1 5 . . . . Low Security (%) 57 | 100 93 100 . 100 56 52 91 30 . . . . Level 1 23 | . 6 . . . 43 44 8 . . . . . Level 2 1 | . . . . . . 3 . 1 . . . . Level 3 8 | . . . . . . . . 30 . . . . Level 4 7 | . . . . . . . . 28 . . . . Level 5 1 | . . . . . . . . 5 . . . . High Security . | . . . . . . . . 2 . . . . Max Security . | . . . . . . . . . . . . . Squads Dispatched 37 | . 2 . . . 1 12 . 22 . . . . Investigation 4 | . 1 . . . . 1 . 2 . . . . Extermination 17 | . . . . . . 10 . 7 . . . . Reinforcement 4 | . 1 . . . 1 1 . 1 . . . . Assault 10 | . . . . . . . . 10 . . . . Garrison 2 | . . . . . . . . 2 . . . . Intercept . | . . . . . . . . . . . . . Construction Impeded 2 | . . . . . 1 . . 1 . . . . Haulers Reinforced 1 | . . . . . . 1 . . . . . . Stealth | -11 -10 -10 -10 -9 -8 -7 -7 -7 -7 -7 -7 -7 --------- Run | Scr Mat Min Exi Min Mat Fac Was Fac Low Low Zio Dee Distress Signals 4 | . 1 . . . 2 . . 1 . . . . Communications Jammed . | . . . . . . . . . . . . . Distress Signals . | . . . . . . . . . . . . . Times Spotted 214 | . 16 5 . 2 37 28 6 97 4 1 . 18 Peak Tracking Total 14 | . 4 3 . 2 4 2 2 14 4 1 . 6 Tactical Retreats 4 | . 1 . . . 1 . . 2 . . . . Traps | -11 -10 -10 -10 -9 -8 -7 -7 -7 -7 -7 -7 -7 ------- Run | Scr Mat Min Exi Min Mat Fac Was Fac Low Low Zio Dee Traps Triggered 13 | . . . . . . 3 . 10 . . . . Indirectly . | . . . . . . . . . . . . . Trap Hack Attempts 334 | . 102 . . 33 58 115 . 26 . . . . Triggered 2 | . . . . . 1 1 . . . . . . Disarmed 15 | . 4 . . . 4 7 . . . . . . Reprogrammed 37 | . 9 . . 4 5 13 . 6 . . . . Reused 8 | . . . . . 4 1 . 1 . . . 2 Traps Extracted 2 | . . . . . . . . 2 . . . . Installed 3 | . . . . . . . . . . . . 3 Triggered 7 | . . . . . 5 1 . 1 . . . . Machines | -11 -10 -10 -10 -9 -8 -7 -7 -7 -7 -7 -7 -7 ---------- Run | Scr Mat Min Exi Min Mat Fac Was Fac Low Low Zio Dee Machines Disabled 19 | . . . . . 1 2 . 13 . . . 3 Max in Single Turn 4 | . . . . . 1 2 . 4 . . . 1 Garrison Access 3 | . . . . . 1 . . 2 . . . . Machines Sabotaged . | . . . . . . . . . . . . . Garrisons Compromised . | . . . . . . . . . . . . . Overloaded Fab Kills . | . . . . . . . . . . . . . Fab Network Shutdowns 2 | . . . . . . 1 . 1 . . . . Hacking | -11 -10 -10 -10 -9 -8 -7 -7 -7 -7 -7 -7 -7 --------- Run | Scr Mat Min Exi Min Mat Fac Was Fac Low Low Zio Dee Machines Accessed 66 | . 8 . 2 1 16 20 . 16 2 1 . . Terminals 33 | . 6 . . . 10 10 . 7 . . . . Fabricators 6 | . . . . . . 3 . 3 . . . . Repair Stations 6 | . 1 . . . 1 3 . 1 . . . . Recycling Units 7 | . 1 . . . 2 2 . 2 . . . . Scanalyzers 4 | . . . . . 2 1 . 1 . . . . Garrison Access 4 | . . . . . 1 1 . 2 . . . . Total Hacks 215 | . 33 . 2 1 43 64 . 69 2 1 . . Successful 133 | . 23 . 2 1 27 37 . 40 2 1 . . Failed 80 | . 9 . . . 15 27 . 29 . . . . Catastrophic 6 | . . . . . . 5 . 1 . . . . Database Lockouts 2 | . 1 . . . 1 . . . . . . . Manual 124 | . 24 . 1 . 31 27 . 36 . . 5 . Terminals 125 | . 24 . . . 30 40 . 31 . . . . Fabricators 26 | . . . . . . 5 . 21 . . . . Repair Stations 22 | . 6 . . . 2 11 . 3 . . . . Recycling Units 19 | . 3 . . . 5 4 . 7 . . . . Scanalyzers 12 | . . . . . 5 2 . 5 . . . . Garrison Access 5 | . . . . . 1 2 . 2 . . . . Terminal Hacks 38 | . 6 . 2 1 5 13 . 8 2 1 . . Record 2 | . . . 1 . . . . . 1 . . . Part Schematic 4 | . 1 . . . 2 1 . . . . . . Robot Schematic 1 | . . . . . . . . 1 . . . . Robot Analysis 5 | . 3 . . . 1 1 . . . . . . Prototype ID Bank 3 | . 1 . . . . 1 . 1 . . . . Open Door 3 | . . . . 1 . . . . 1 1 . . Branch Access Points 2 | . . . . . . 1 . 1 . . . . Terminal Index 4 | . 1 . . . 1 1 . 1 . . . . Fabricator Index 2 | . . . . . . 1 . 1 . . . . Garrison Index 1 | . . . . . . 1 . . . . . . Alert Level 1 | . . . . . . . . 1 . . . . Unreport Threat 5 | . . . . . 1 2 . 2 . . . . Locate Traps 3 | . . . . . . 3 . . . . . . Hauler Manifests 1 | . . . . . . 1 . . . . . . EX-Prototype ID Bank 1 | . . . 1 . . . . . . . . . Fabricator Hacks 17 | . . . . . . 4 . 13 . . . . Load Schematic 5 | . . . . . . 1 . 4 . . . . Build 12 | . . . . . . 3 . 9 . . . . Repair Station Hacks 18 | . 6 . . . 2 8 . 2 . . . . Scan Component 9 | . 3 . . . 1 4 . 1 . . . . Repair 9 | . 3 . . . 1 4 . 1 . . . . Recycling Unit Hacks 5 | . 2 . . . 2 . . 1 . . . . Retrieve Components 5 | . 2 . . . 2 . . 1 . . . . Scanalyzer 12 | . . . . . 5 2 . 5 . . . . Insert Component 7 | . . . . . 3 1 . 3 . . . . Analyze 5 | . . . . . 2 1 . 2 . . . . Garrison Access Hacks 3 | . . . . . 1 . . 2 . . . . Seal Access 3 | . . . . . 1 . . 2 . . . . Unauthorized Hacks 40 | . 9 . . . 12 10 . 9 . . . . Terminals 27 | . 8 . . . 9 6 . 4 . . . . Track 3 | . 2 . . . 1 . . . . . . . Assimilate 6 | . 1 . . . 3 . . 2 . . . . Botnet 15 | . 4 . . . 4 5 . 2 . . . . Operators 3 | . 1 . . . 1 1 . . . . . . Fabricators 3 | . . . . . . 1 . 2 . . . . Siphon 1 | . . . . . . . . 1 . . . . Haulers 2 | . . . . . . 1 . 1 . . . . Repair Stations . | . . . . . . . . . . . . . Recycling Units 9 | . 1 . . . 3 2 . 3 . . . . Reject 3 | . . . . . 2 . . 1 . . . . Mask 4 | . 1 . . . 1 1 . 1 . . . . Tunnel 2 | . . . . . . 1 . 1 . . . . Scanalyzers . | . . . . . . . . . . . . . Garrison Access 1 | . . . . . . 1 . . . . . . Watchers 1 | . . . . . . 1 . . . . . . Data Cores Recovered . | . . . . . . . . . . . . . Used . | . . . . . . . . . . . . . Hacking Detections 50 | . 8 . . . 13 16 . 13 . . . . Full Trace Events 1 | . 1 . . . . . . . . . . . Feedback Events . | . . . . . . . . . . . . . Feedback Blocked . | . . . . . . . . . . . . . Robot Schematics Acquired 1 | . . . . . . . . 1 . . . . Robots Built . | . . . . . . . . . . . . . Matter . | . . . . . . . . . . . . . Time . | . . . . . . . . . . . . . Total Robot Build Rating . | . . . . . . . . . . . . . Part Schematics Acquired 8 | . 1 . . . 3 2 . 2 . . . . Parts Built 11 | . . . . . . 1 . 10 . . . . Matter 1246 | . . . . . . 146 . 1100 . . . . Time 591 | . . . . . . 73 . 518 . . . . Total Part Build Rating 29 | . . . . . . 3 . 26 . . . . Parts Repaired 9 | . 3 . . . 1 4 . 1 . . . . Time 279 | . 78 . . . 32 138 . 31 . . . . Parts Recycled . | . . . . . . . . . . . . . Recycled Matter . | . . . . . . . . . . . . . Retrieved Matter . | . . . . . . . . . . . . . Retrieved Components 34 | . 13 . . . 19 . . 2 . . . . Parts Scanalyzed 4 | . . . . . 1 1 . 2 . . . . Part Schematics Acquired 4 | . . . . . 1 1 . 2 . . . . Parts Damaged . | . . . . . . . . . . . . . Bothacking | -11 -10 -10 -10 -9 -8 -7 -7 -7 -7 -7 -7 -7 ------------ Run | Scr Mat Min Exi Min Mat Fac Was Fac Low Low Zio Dee Used RIF Installer . | . . . . . . . . . . . . . Robots Hacked 7 | . . . 4 . . 1 . 2 . . . . Non-combat 6 | . . . 3 . . 1 . 2 . . . . Combat 1 | . . . 1 . . . . . . . . . Robot Hacks Applied 8 | . . . 4 . . 1 . 3 . . . . parse_system 5 | . . . 4 . . . . 1 . . . . no_distress 2 | . . . . . . . . 2 . . . . find_chute 1 | . . . . . . 1 . . . . . . Relay Couplers Released 4 | . . . . . . 4 . . . . . . Programmers 4 | . . . . . . 4 . . . . . . Robots Rewired . | . . . . . . . . . . . . . Allies Hacked . | . . . . . . . . . . . . . Hacks Repelled . | . . . . . . . . . . . . . Allies | -11 -10 -10 -10 -9 -8 -7 -7 -7 -7 -7 -7 -7 -------- Run | Scr Mat Min Exi Min Mat Fac Was Fac Low Low Zio Dee Total Allies 37 | . 1 3 . . 2 . 19 2 . . 10 . Largest Group 19 | . 1 4 1 1 1 1 19 2 . . 10 10 Highest-Rated Group 487 | . 10 50 10 10 10 10 487 20 . . 404 404 Highest-Rated Ally 94 | . 10 16 10 10 10 10 35 10 . . 94 94 Total Orders 19 | . 2 2 2 . 9 . . 4 . . . . STAY 11 | . 1 1 1 . 5 . . 3 . . . . FOLLOW 8 | . 1 1 1 . 4 . . 1 . . . . Ally Attacks 109 | . . 12 . . . . . . . . . 97 Total Damage 2052 | . . 91 . . . . . . . . . 1961 Kills 20 | . . 3 . . . . . . . . . 17 Allies Corrupted . | . . . . . . . . . . . . . Allies Melted 1 | . . . . . . . . . . . . 1 Intel | -11 -10 -10 -10 -9 -8 -7 -7 -7 -7 -7 -7 -7 ------- Run | Scr Mat Min Exi Min Mat Fac Was Fac Low Low Zio Dee Robot Analysis Total 5 | . 3 . . . 1 1 . . . . . . Derelict Logs Recovered 6 | . . . . 3 . . . . . 1 2 . Drone Launches . | . . . . . . . . . . . . . Drone Recoveries . | . . . . . . . . . . . . . Exploration | -11 -10 -10 -10 -9 -8 -7 -7 -7 -7 -7 -7 -7 ------------- Run | Scr Mat Min Exi Min Mat Fac Was Fac Low Low Zio Dee Turns Passed 31192 | 41 1553 836 337 737 5797 5006 1537 5820 1470 1484 3502 3072 Spaces Moved 14420 | 32 1076 605 409 546 2626 2029 793 2181 618 615 1461 1429 Core 598 | 29 567 . . . . . . 2 . . . . Treads 11579 | 3 509 303 . . 2348 2029 85 2179 618 615 1461 1429 Legs . | . . . . . . . . . . . . . Wheels . | . . . . . . . . . . . . . Hover 2243 | . . 302 409 546 278 . 708 . . . . . Flight . | . . . . . . . . . . . . . Fastest Speed 50 | 50 50 76 76 76 146 197 76 180 217 217 217 157 Average Speed 182 | 60 103 129 76 89 176 201 156 213 230 229 236 188 Slowest Speed 1650 | 160 180 180 76 146 200 205 286 1650 237 237 237 237 Overloaded Moves . | . . . . . . . . . . . . . Propulsion Burnouts . | . . . . . . . . . . . . . Robots Hopped . | . . . . . . . . . . . . . Cave-ins Triggered . | . . . . . . . . . . . . . Exploration Rate (%) 72 | 4 99 98 70 78 100 49 96 37 74 70 85 84 Regions Visited 12 Branch Regions 7 Pre-discovered Areas 6 | . . 1 1 1 . 1 . 1 . . 1 . Known Exits Taken 7 | . 1 . 1 . 1 . . 1 1 1 1 . Unknown Exits Taken 3 | 1 . 1 . 1 . . . . . . . . Scrap Searched 13 | . . 3 . 1 . . . . 3 2 4 . Spaces Dug 79 | . 6 1 . 4 15 9 . 16 1 13 . 14 Terrain Destroyed 593 | . 6 3 . 5 18 13 294 218 2 15 . 19 Melee . | . . . . . . . . . . . . . Projectile 100 | . 6 3 . 5 18 13 . 19 2 15 . 19 AOE 493 | . . . . . . . 294 199 . . . . Terrain Rammed . | . . . . . . . . . . . . . Walls Destroyed . | . . . . . . . . . . . . . Machines Disabled . | . . . . . . . . . . . . . Actions | -11 -10 -10 -10 -9 -8 -7 -7 -7 -7 -7 -7 -7 --------- Run | Scr Mat Min Exi Min Mat Fac Was Fac Low Low Zio Dee Total 18211 | 46 1415 638 431 772 3541 2788 991 3047 645 668 1502 1727 Wait 1788 | . 112 14 2 154 554 431 46 450 . 7 3 15 Move 14409 | 31 1075 604 408 545 2625 2029 792 2180 617 614 1460 1429 Hop . | . . . . . . . . . . . . . Pick Up 300 | 6 29 1 9 6 47 27 54 48 5 7 10 51 Fast Attach 61 | 4 3 3 1 2 6 3 8 11 . 2 4 14 Attach 78 | . 8 . 1 2 12 5 7 18 . 1 3 21 Detach 43 | . 5 . 1 2 5 1 3 6 . . 2 18 Swap 209 | . 9 2 2 6 44 51 3 70 7 5 1 9 Drop 285 | 2 13 4 3 7 42 28 23 50 4 9 14 86 Fire 641 | 3 59 10 . 15 145 97 20 176 12 23 . 81 Melee 50 | . . . 4 . . 1 35 5 . . 5 . Ram . | . . . . . . . . . . . . . Kick . | . . . . . . . . . . . . . Crush 6 | . . . . . 3 . . 3 . . . . Escape Stasis 4 | . . . . . . . . 4 . . . . Rewire . | . . . . . . . . . . . . . Trap 337 | . 102 . . 33 58 115 . 26 . . . 3 Miscellaneous . | . . . . . . . . . . . . . Route ------- -11/Scrapyard -10/Materials (discovered 4 exits: *Mat x3 / *Min) -10/Mines (discovered 3 exits: *Mat x2 / *Exi) -10/Exiles -9/Mines (discovered 2 exits: *Mat x2) -8/Materials (discovered 3 exits: *Fac x3) -7/Factory (discovered 6 exits: *Fac x2 / Sto x2 / *Low x2) -7/Waste -7/Factory (discovered 4 exits: *Fac / Sto / *Low x2) -7/Lower Caves -7/Lower Caves (discovered 2 exits: *Fac / *Zio) -7/Zion (discovered 2 exits: *Dee / *Pro) -7/Deep Caves (discovered 1 exit: [*Pro]) History --------- Turn | Location | Event 12 | -11/Scrapyard | Discovered new exit (range 16) 42 | -11/Scrapyard | Entered Materials 98 | -10/Materials | Discovered new exit (range 11) 153 | -10/Materials | Central database locked down 199 | -10/Materials | Discovered new exit (range 16) 251 | -10/Materials | Discovered new exit (range 9) 310 | -10/Materials | Build established: Mutant 411 | -10/Materials | Identified exit to Materials 705 | -10/Materials | Discovered exit to Materials (range 16) 849 | -10/Materials | Identified exit to Mines 1402 | -10/Materials | Repaired Ion Engine 1429 | -10/Materials | Repaired Lgt. Treads 1456 | -10/Materials | Repaired Lgt. Treads 1595 | -10/Materials | Entered Mines 1595 | -10/Mines | Accompanied by 1 ally 1687 | -10/Mines | Discovered exit to Materials (range 10) 1734 | -10/Mines | Assisted by bots powering up and referring to "LRC-V3" 1859 | -10/Mines | Deemed a non-threat by the Exiles lab entrance 1859 | -10/Mines | Discovered new exit (range 5) 1981 | -10/Mines | Destroyed YI-UF0 2018 | -10/Mines | A weapon hastily lodged in a ceiling crevice suddenly fell to the ground 2105 | -10/Mines | Assembled infested the area 2195 | -10/Mines | Discovered exit to Materials (range 4) 2253 | -10/Mines | Learned location of Storage (-7) 2431 | -10/Mines | Entered Exiles 2431 | -10/Exiles | Accompanied by 1 ally 2452 | -10/Exiles | Met 8R-AWN 2467 | -10/Exiles | Met EX-HEX 2502 | -10/Exiles | Met EX-DEC 2524 | -10/Exiles | Learned location of Zion (-7) 2573 | -10/Exiles | Met EX-BIN 2585 | -10/Exiles | Aligned with FarCom system 2586 | -10/Exiles | Given EX-Vault access code 2604 | -10/Exiles | Opened EX-Vault 2612 | -10/Exiles | Found Latent Energy Streamer 2640 | -10/Exiles | Warned to stay clear of 0b10 Research branches 2699 | -10/Exiles | Discovered new exit (range 10) 2711 | -10/Exiles | Identified exit to Mines 2768 | -10/Exiles | Left Exiles lab with Latent Energy Streamer 2768 | -10/Exiles | Entered Mines 2768 | -9/Mines | Accompanied by 1 ally 2958 | -9/Mines | Met a Derelict who couldn't figure out how to use a Trap Extractor 3040 | -9/Mines | Learned Materials emergency access door positions 3478 | -9/Mines | Discovered new exit (range 6) 3494 | -9/Mines | Learned Materials security intel 3499 | -9/Mines | Discovered new exit (range 8) 3505 | -9/Mines | Entered Materials 3505 | -8/Materials | Evolved 4 slots: Utility x4 3982 | -8/Materials | Build established: Hauler-Mutant 4901 | -8/Materials | Discovered new exit (range 4) 4907 | -8/Materials | Identified exit to Factory 5501 | -8/Materials | Build established: Mutant 5788 | -8/Materials | Discovered exit to Factory (range 14) 6273 | -8/Materials | Build established: Scavenger-Mutant 7265 | -8/Materials | Discovered exit to Factory (range 16) 7389 | -8/Materials | Central database locked down 7698 | -8/Materials | Repaired Autogun 8507 | -8/Materials | Build established: Hauler-Mutant 9302 | -8/Materials | Entered Factory 9302 | -7/Factory | Accompanied by 1 ally 9302 | -7/Factory | Evolved 2 slots: Utility x2 9592 | -7/Factory | Fabricated System Shield? 9690 | -7/Factory | Local fabrication network quarantined 10481 | -7/Factory | Identified exit to Storage 10481 | -7/Factory | Identified exit to Lower Caves 10828 | -7/Factory | Repaired Cmb. Airjet 10873 | -7/Factory | Repaired Flak Gun 11115 | -7/Factory | Discovered new exit (range 5) 11126 | -7/Factory | Identified exit to Factory 11526 | -7/Factory | Found Prototype Launcher 11527 | -7/Factory | Identified Rocket Array 12001 | -7/Factory | Repaired Med. Treads 12143 | -7/Factory | Discovered exit to Factory (range 5) 12874 | -7/Factory | Repaired Flak Gun 14308 | -7/Factory | Sucked down chute 14308 | -7/Factory | Entered Waste 14350 | -7/Waste | Spotted C-40 Crusher 14361 | -7/Waste | Destroyed C-40 Crusher 14397 | -7/Waste | Spotted C-40 Crusher 14401 | -7/Waste | Destroyed C-40 Crusher 14404 | -7/Waste | Spotted C-40 Crusher 14408 | -7/Waste | Destroyed C-40 Crusher 14436 | -7/Waste | Found Damper Plating 14527 | -7/Waste | Spotted C-40 Crusher 14530 | -7/Waste | Spotted C-40 Crusher 14536 | -7/Waste | Destroyed C-40 Crusher 14539 | -7/Waste | Spotted C-40 Crusher 14554 | -7/Waste | Destroyed C-40 Crusher 14581 | -7/Waste | Destroyed C-40 Crusher 14634 | -7/Waste | Discovered new exit (range 13) 15258 | -7/Waste | Warlord forces began an assault 15845 | -7/Waste | Entered Factory 16399 | -7/Factory | Fabricated Hcp. Storage Unit? 16547 | -7/Factory | Fabricated Hcp. Storage Unit (x1) 16591 | -7/Factory | Build established: Hacker-Mutant 16603 | -7/Factory | Fabricated Hcp. Storage Unit (x1) 16657 | -7/Factory | Fabricated Hcp. Storage Unit (x1) 16961 | -7/Factory | Build established: Hauler-Mutant 17006 | -7/Factory | Repaired Adv. Armor Integrity Analyzer 17618 | -7/Factory | Garrison activated, responded to threat 17703 | -7/Factory | Destroyed 8 combat bots 17845 | -7/Factory | First assault squad dispatched 17878 | -7/Factory | Fabricated Flak Gun? 18013 | -7/Factory | Lost 6 parts (1p1n2u2w) 18159 | -7/Factory | Fabricated Flak Gun (x2) 18755 | -7/Factory | Discovered exit to Factory (range 15) 20537 | -7/Factory | Fabricated System Shield (x1) 20612 | -7/Factory | Fabricated System Shield (x1) 20625 | -7/Factory | Garrison activated, responded to threat 20668 | -7/Factory | Local fabrication network quarantined 21519 | -7/Factory | High security lockdown imminent 21599 | -7/Factory | High security lockdown engaged 21665 | -7/Factory | Entered Lower Caves 22901 | -7/Lower Caves | Discovered new exit (range 10) 22975 | -7/Lower Caves | Identified exit to Lower Caves 23135 | -7/Lower Caves | Entered another Lower Caves area 23237 | -7/Lower Caves | Discovered exit to Factory (range 9) 23646 | -7/Lower Caves | Found Alien Artifact 23646 | -7/Lower Caves | Identified Core Expander 23646 | -7/Lower Caves | Installed Core Expander, added new Utility slot 23727 | -7/Lower Caves | Encountered a Warlord checkpoint 23774 | -7/Lower Caves | Identified exit to Zion 24156 | -7/Lower Caves | Core integrity fell below 50% 24619 | -7/Lower Caves | Entered Zion 24764 | -7/Zion | Discovered new exit (range 16) 24797 | -7/Zion | Identified exit to Proximity Caves 24865 | -7/Zion | Found CR-A16's Pointy Stick 24897 | -7/Zion | Gained Derelict followers 25073 | -7/Zion | Found Relay Coupler [Programmer] 25077 | -7/Zion | Found Relay Coupler [Programmer] 25477 | -7/Zion | Learned location of Warlord (-4) 25539 | -7/Zion | Learned Factory stockpile data 25828 | -7/Zion | Given A8's code to call for help 25835 | -7/Zion | Acquired unknown access codes intercepted by a Zionite 26309 | -7/Zion | Learned Factory garrison access intel 26354 | -7/Zion | Given the Hacking Drone Bay 26562 | -7/Zion | Opened final containment barrier to the Deep Caves 26597 | -7/Zion | Discovered new exit (range 3) 26597 | -7/Zion | Saw the warning signs outside the Deep Caves entrance 26602 | -7/Zion | Identified exit to Deep Caves 26823 | -7/Zion | Found Prototype Device 27452 | -7/Zion | Found Prototype Device 27905 | -7/Zion | Rebuked by Imprinter 28009 | -7/Zion | Gained Derelict followers 28089 | -7/Zion | Enhanced Grunt warped into view, answering call for help 28090 | -7/Zion | Enhanced Grunt warped into view, answering call for help 28121 | -7/Zion | Entered Deep Caves 28121 | -7/Deep Caves | Accompanied by 10 allies 28571 | -7/Deep Caves | Z-Facility disabled 28577 | -7/Deep Caves | Attacked by Z-Imprinter 28606 | -7/Deep Caves | Allies destroyed Z-Imprinter 28781 | -7/Deep Caves | Found Prototype Device 28781 | -7/Deep Caves | Identified Zio. Metafield Generator 28784 | -7/Deep Caves | Found Prototype Protection 28800 | -7/Deep Caves | Identified Zio. Weapon Casing 28836 | -7/Deep Caves | Build established: Mutant 29133 | -7/Deep Caves | Lost 5 parts (3u2w) 29714 | -7/Deep Caves | Found Zio. Weapon Casing 29770 | -7/Deep Caves | Found Zio. Weapon Casing 30093 | -7/Deep Caves | Found Zio. Weapon Casing 30155 | -7/Deep Caves | Build established: Scavenger-Mutant 30259 | -7/Deep Caves | Found Prototype Device 30259 | -7/Deep Caves | Identified Exp. Thermal Shield 30505 | -7/Deep Caves | Discovered new exit (range 6) 30715 | -7/Deep Caves | Spotted as-97256 30756 | -7/Deep Caves | Core integrity fell below 20% 30814 | -7/Deep Caves | Lost 4 parts (4u) 30818 | -7/Deep Caves | Destroyed as-97256 31010 | -7/Deep Caves | Exposed GOLEM chamber 31014 | -7/Deep Caves | Found GOLEM Unit 31018 | -7/Deep Caves | Found GOLEM Unit 31056 | -7/Deep Caves | Found GOLEM Unit 31063 | -7/Deep Caves | Found GOLEM Unit 31192 | -7/Deep Caves | Spotted as-94663 31193 | -7/Deep Caves | Destroyed by as-94663 with Assembled Focal Cannon Last Messages --------------- 30934_ Dropped Zio. Laser-M. 30935_ Dropped Zio. Phaser-S. 31010_ Wall Chamber breached. 31010_ A GOLEM Unit tumbles out of the Wall Chamber. 31014_ Acquired GOLEM Unit. 31015_ A GOLEM Unit tumbles out of the Wall Chamber. 31018_ Acquired GOLEM Unit. 31019_ A GOLEM Unit tumbles out of the Wall Chamber. 31022_ GOLEM Unit springs to life. 31023_ as-32945 GOLEM Unit beginning Prototype Leg integration. 31030_ A GOLEM Unit tumbles out of the Wall Chamber. 31032_ GOLEM Unit springs to life. 31033_ as-42837 GOLEM Unit beginning Prototype Leg integration. 31033_ as-32945 destroyed. 31052_ as-42837 destroyed. 31056_ Acquired GOLEM Unit. 31059_ A GOLEM Unit tumbles out of the Wall Chamber. 31063_ Acquired GOLEM Unit. 31111_ Dropped Zio. Light DM Reactor. 31113_ Acquired 10 matter. Map ----- +----------------------------------------------------+ | | | | | | | | | | | | | | | | | | | | | ???????????????????????????????????????????????? | | ???????????????????????????????????????????????? | | ???????????????????????????????????????????????? | | ?????????????? ????????????????????????????????? | | ???????????? ???????????????????????????????? | | ???????????? ??????????????????????????????? | | ??????????? #?????????????????????????????? | | ??????????? ???###??????????????????????? | | ?????????? #??# #???????????############ | | ?????????? ?# #???????????# | | ??????????" ?# #???????????# | | ?????????G ## #???????????# #### ### | | ????????? # #####???????# #??####?# | | ????????" ] ????????# #???????? | | ????????# #????###??# ###?????? | | ?????????" @ #????## ### ##????? | | ?????????" ;##????# ### #####? | | ?????????" l ##??## #### ## | | ?????????" ###"#??# ##### | | ?????????" [ ??# #??# #??## | | ????????# ### #### #???## ## | | ????????# " ## #????###### | | ????????# [ ####?# #?????????# | | ????????# M[ ###?## #?????????# | | ????????# #??# ###???????# | | ????????# [ ###??# ##??##### | | ????????? ! ! "#??## #### # | | ????????? #??# ## | | ????????? ! !! #??# ## # | | ????????? #??## ### ### | | ????????? ! ! #?### ### #?? | | ?????????" [ [ [! #?# ## #?? | | ??????#""" [ ! #?## ## ### | | ??????# "" #??# ## ## | | ??????# " ##?# ### # | | ??????# " ! ! #?## #### # | | ??????### #??#### ### # | | ????????" ! #?????# ## | | ????????" ! ####### ! | | ????????" !!![ | +----------------------------------------------------+ Best States ------------- Heat Dissipation 60 Energy Generation 27 Energy Capacity 1100 Matter Stores 300 Matter Capacity 300 Sight Range 16 Robot Scan Range 20 Terrain Scan Density 10 Base Temperature (-) 150 EM Shielding 2 Armor Coverage 1425 Resistance: KI 30 Resistance: TH 30 Resistance: EM 90 Utility Shielding 33 Weapon Shielding 100 Evasion (%) 50 Targeting Accuracy 8 Armor Integrity Analysis 66 Recoil Reduction 4 Kinecelleration 30 Salvage Targeting 2 Offensive Hacking 20 Defensive Hacking 20 Item Schematics ----------------- Hcp. Storage Unit | -10/Materials | Hacked Hacking Suite | -8/Materials | Hacked System Shield | -8/Materials | Hacked Imp. VTOL Module | -8/Materials | Scanalyzed Flak Gun | -7/Factory | Scanalyzed Remote Datajack | -7/Factory | Hacked Adv. Armor Integrity Analyzer | -7/Factory | Scanalyzed Imp. Linear Gravjet | -7/Factory | Scanalyzed Robot Schematics ------------------ Y-54 Guardian | -7/Factory | Hacked Fabricated ------------ System Shield | x1 | -7/Factory Hcp. Storage Unit | x1 | -7/Factory Hcp. Storage Unit | x1 | -7/Factory Hcp. Storage Unit | x1 | -7/Factory Hcp. Storage Unit | x1 | -7/Factory Flak Gun | x2 | -7/Factory Flak Gun | x2 | -7/Factory System Shield | x1 | -7/Factory System Shield | x1 | -7/Factory Alien Tech Used ----------------- Core Expander Achievements -------------- None Challenges ------------ None Game ------ Seed CoilLobotomyDriver Manual? 0 Play Time 03:51:39 Cumulative 224.2 hours Start 2021.01.18 @ 08:48:54 End 2021.01.18 @ 13:30:50 Sessions 3 Manual Loads 0 Difficulty Rogue Special Mode None Game No. 199 Rogue 199 Adventurer 0 Explorer 0 Win Type - Total 1 Types 0/0/0/1/0/0/0/0/0 Lore% 60 Gallery% 71 Achievement% 57 Wizard Run 0 Options --------- ASCII 0 Keyboard 1 Movement Numpad Keybinds 0 Fullscreen 1 Font 12/Terminus Map View 83x54 Tactical HUD 1 Map Filters NONE Filters NONE Steam 1 RUN: 4b1e51fc-9ca1-47f4-a521-a71b6bfb9ff4